[Event "*** Titled Tuesday Blitz"]
[Site "Chess.com"]
[Date "2018.01.02"]
[Round "1"]
[White "Big_Fishy"]
[Black "Iball95"]
[Result "1-0"]
[WhiteElo "2335"]
[BlackElo "2590"]
[TimeControl "180+2"]
[EndTime "13:09:09 PST"]
[Termination "Big_Fishy won by checkmate"]

1. d4 {[%clk 0:03:01.9]} 1... d5 {[%clk 0:02:59.1]} 2. Nc3 {[%clk 0:03:02.5]}
2... Nf6 {[%clk 0:02:57.5]} 3. Bf4 {[%clk 0:03:02.8]} 3... c5 {[%clk 0:02:55.4]}
4. e3 {[%clk 0:03:03.1]} 4... a6 {[%clk 0:02:55.6]} 5. Nf3 {[%clk 0:03:01.5]}
5... cxd4 {[%clk 0:02:55.3]} 6. exd4 {[%clk 0:03:01.6]} 6... Nc6 {[%clk
0:02:56.2]} 7. h3 {[%clk 0:03:01.4]} 7... Bf5 {[%clk 0:02:53.9]} 8. g4 {[%clk
0:02:56.1]} 8... Bg6 {[%clk 0:02:48.3]} 9. Bg2 {[%clk 0:02:56.5]} 9... e6 {[%clk
0:02:45.8]} 10. O-O {[%clk 0:02:53.2]} 10... Bd6 {[%clk 0:02:44.3]} 11. Ne5
{[%clk 0:02:37.9]} 11... Bxe5 {[%clk 0:02:41.2]} 12. dxe5 {[%clk 0:02:33.8]}
12... Nd7 {[%clk 0:02:42]} 13. Re1 {[%clk 0:02:22.3]} 13... h5 {[%clk
0:02:41.2]} 14. g5 {[%clk 0:02:13.8]} 14... Nb6 {[%clk 0:02:37.3]} 15. b3 {[%clk
0:02:06]} 15... Rc8 {[%clk 0:02:37.3]} 16. a3 {[%clk 0:01:51.3]} 16... Qc7
{[%clk 0:02:35.5]} 17. Ne2 {[%clk 0:01:38]} 17... Ne7 {[%clk 0:02:30.6]} 18. Nd4
{[%clk 0:01:35.2]} 18... Nf5 {[%clk 0:02:30.5]} 19. Rc1 {[%clk 0:01:25]} 19...
Nxd4 {[%clk 0:02:19.6]} 20. Qxd4 {[%clk 0:01:25.6]} 20... O-O {[%clk 0:02:21.4]}
21. Be3 {[%clk 0:01:18.8]} 21... Nd7 {[%clk 0:02:21.1]} 22. c4 {[%clk
0:01:16.1]} 22... Qxe5 {[%clk 0:02:04.1]} 23. cxd5 {[%clk 0:01:13.1]} 23... exd5
{[%clk 0:01:53.8]} 24. Qxd5 {[%clk 0:01:06.3]} 24... Rcd8 {[%clk 0:01:48.5]} 25.
Qxe5 {[%clk 0:00:53]} 25... Nxe5 {[%clk 0:01:50.2]} 26. Bb6 {[%clk 0:00:43]}
26... Nd3 {[%clk 0:01:42.8]} 27. Bxd8 {[%clk 0:00:43.3]} 27... Nxc1 {[%clk
0:01:38.7]} 28. Rxc1 {[%clk 0:00:41.4]} 28... Rxd8 {[%clk 0:01:39.4]} 29. Bxb7
{[%clk 0:00:42]} 29... Rd3 {[%clk 0:01:38.5]} 30. Bxa6 {[%clk 0:00:27.8]} 30...
Rxb3 {[%clk 0:01:37.8]} 31. a4 {[%clk 0:00:28.5]} 31... Rxh3 {[%clk 0:01:37.9]}
32. Kg2 {[%clk 0:00:22.3]} 32... Rh4 {[%clk 0:01:34.5]} 33. Bb5 {[%clk
0:00:21.8]} 33... Rg4+ {[%clk 0:01:35.4]} 34. Kf1 {[%clk 0:00:22.3]} 34... Rxg5
{[%clk 0:01:37.3]} 35. Rc3 {[%clk 0:00:19.1]} 35... Be4 {[%clk 0:01:20.1]} 36.
f3 {[%clk 0:00:18.8]} 36... Bd5 {[%clk 0:01:16.3]} 37. Kf2 {[%clk 0:00:18.6]}
37... g6 {[%clk 0:01:16]} 38. Rc5 {[%clk 0:00:18.2]} 38... Rf5 {[%clk
0:01:15.1]} 39. Be2 {[%clk 0:00:16.3]} 39... Be6 {[%clk 0:00:35.5]} 40. Rxf5
{[%clk 0:00:16]} 40... Bxf5 {[%clk 0:00:37.2]} 41. a5 {[%clk 0:00:15.3]} 41...
Bc8 {[%clk 0:00:37.8]} 42. a6 {[%clk 0:00:14.9]} 42... Kf8 {[%clk 0:00:38.7]}
43. a7 {[%clk 0:00:13.3]} 43... Bb7 {[%clk 0:00:39.5]} 44. f4 {[%clk 0:00:14.3]}
44... g5 {[%clk 0:00:25.7]} 45. Bf3 {[%clk 0:00:14.8]} 45... Bxf3 {[%clk
0:00:22.9]} 46. Kxf3 {[%clk 0:00:15.9]} 46... g4+ {[%clk 0:00:24.6]} 47. Kg3
{[%clk 0:00:17.2]} 47... f5 {[%clk 0:00:26.3]} 48. a8=Q+ {[%clk 0:00:18.1]}
48... Kg7 {[%clk 0:00:28]} 49. Qd5 {[%clk 0:00:18.4]} 49... Kg6 {[%clk
0:00:29.9]} 50. Qe6+ {[%clk 0:00:19.6]} 50... Kg7 {[%clk 0:00:30.5]} 51. Qxf5
{[%clk 0:00:20.7]} 51... h4+ {[%clk 0:00:32.4]} 52. Kxh4 {[%clk 0:00:21.8]}
52... g3 {[%clk 0:00:34.3]} 53. Kxg3 {[%clk 0:00:22.8]} 53... Kh6 {[%clk
0:00:36.2]} 54. Qg4 {[%clk 0:00:23.6]} 54... Kh7 {[%clk 0:00:37.4]} 55. f5
{[%clk 0:00:24.9]} 55... Kh8 {[%clk 0:00:39.3]} 56. f6 {[%clk 0:00:26.1]} 56...
Kh7 {[%clk 0:00:41.2]} 57. Qg7# {[%clk 0:00:27.4]} 1-0

[Event "*** Titled Tuesday Blitz"]
[Site "Chess.com"]
[Date "2018.01.02"]
[Round "1"]
[White "JustaTrickstar"]
[Black "Alohamora11"]
[Result "1-0"]
[WhiteElo "2464"]
[BlackElo "2109"]
[TimeControl "180+2"]
[EndTime "13:09:12 PST"]
[Termination "JustaTrickstar won by resignation"]

1. d4 {[%clk 0:03:01.9]} 1... Nf6 {[%clk 0:02:59.6]} 2. c4 {[%clk 0:03:02.3]}
2... c5 {[%clk 0:03:00.4]} 3. d5 {[%clk 0:03:03.1]} 3... e6 {[%clk 0:03:01.9]}
4. Nc3 {[%clk 0:03:02.9]} 4... exd5 {[%clk 0:03:03.3]} 5. cxd5 {[%clk
0:03:04.8]} 5... d6 {[%clk 0:03:05.2]} 6. Nf3 {[%clk 0:03:03.3]} 6... g6 {[%clk
0:03:06]} 7. Nd2 {[%clk 0:03:04.1]} 7... Nbd7 {[%clk 0:03:04]} 8. e4 {[%clk
0:03:05]} 8... Bg7 {[%clk 0:02:45.9]} 9. Be2 {[%clk 0:02:59.5]} 9... O-O {[%clk
0:02:01.7]} 10. O-O {[%clk 0:02:58.9]} 10... Re8 {[%clk 0:01:54.4]} 11. a4
{[%clk 0:02:57.7]} 11... Ne5 {[%clk 0:01:47]} 12. Ra3 {[%clk 0:02:56.6]} 12...
Bg4 {[%clk 0:01:46.3]} 13. Bxg4 {[%clk 0:02:41.4]} 13... Nfxg4 {[%clk
0:01:38.7]} 14. h3 {[%clk 0:02:40.2]} 14... Nf6 {[%clk 0:01:26]} 15. Qc2 {[%clk
0:02:40]} 15... Nh5 {[%clk 0:01:25.4]} 16. f4 {[%clk 0:02:21.6]} 16... Nd7
{[%clk 0:01:11.8]} 17. Nd1 {[%clk 0:02:12.9]} 17... Bd4+ {[%clk 0:01:09.4]} 18.
Kh2 {[%clk 0:02:10.4]} 18... Qh4 {[%clk 0:01:04.1]} 19. g3 {[%clk 0:01:54.1]}
19... Qe7 {[%clk 0:00:58.7]} 20. Re1 {[%clk 0:01:14.1]} 20... f5 {[%clk
0:00:50.9]} 21. Nc3 {[%clk 0:00:55.1]} 21... Nhf6 {[%clk 0:00:41.3]} 22. Nf3
{[%clk 0:00:54.3]} 22... fxe4 {[%clk 0:00:39.3]} 23. Ng5 {[%clk 0:00:55.2]}
23... Bxc3 {[%clk 0:00:34]} 24. bxc3 {[%clk 0:00:53.5]} 24... Nxd5 {[%clk
0:00:28.8]} 25. Rxe4 {[%clk 0:00:45.7]} 25... Qg7 {[%clk 0:00:22.2]} 26. c4
{[%clk 0:00:37.8]} 26... N5f6 {[%clk 0:00:20.4]} 27. Rxe8+ {[%clk 0:00:32.6]}
27... Rxe8 {[%clk 0:00:22.3]} 28. Rd3 {[%clk 0:00:33.3]} 28... h6 {[%clk
0:00:22.7]} 29. Nf3 {[%clk 0:00:33.9]} 29... Ne4 {[%clk 0:00:22.9]} 30. Bb2
{[%clk 0:00:33.8]} 30... Qf7 {[%clk 0:00:21.3]} 31. Re3 {[%clk 0:00:33.5]} 31...
Ndf6 {[%clk 0:00:21.9]} 32. Nh4 {[%clk 0:00:31.9]} 32... g5 {[%clk 0:00:16]} 33.
Nf5 {[%clk 0:00:31.8]} 33... Qg6 {[%clk 0:00:11.7]} 34. g4 {[%clk 0:00:26.8]}
34... h5 {[%clk 0:00:11.5]} 35. Bxf6 {[%clk 0:00:24.4]} 35... hxg4 {[%clk
0:00:08.9]} 36. Rxe4 {[%clk 0:00:25.1]} 36... Rxe4 {[%clk 0:00:08.3]} 37. Qxe4
{[%clk 0:00:25.6]} 37... Qxf6 {[%clk 0:00:09.5]} 38. hxg4 {[%clk 0:00:23]} 38...
gxf4 {[%clk 0:00:10.8]} 39. Qxf4 {[%clk 0:00:22.9]} 39... Qb2+ {[%clk
0:00:11.3]} 40. Kh3 {[%clk 0:00:23]} 40... Qb3+ {[%clk 0:00:12.5]} 41. Kh4
{[%clk 0:00:24.4]} 41... Qe3 {[%clk 0:00:02.9]} 42. Qxe3 {[%clk 0:00:25]} 1-0

[Event "*** Titled Tuesday Blitz"]
[Site "Chess.com"]
[Date "2018.01.02"]
[Round "1"]
[White "Slmctk"]
[Black "Th3ChessViking"]
[Result "1-0"]
[WhiteElo "2320"]
[BlackElo "2421"]
[TimeControl "180+2"]
[EndTime "13:09:14 PST"]
[Termination "Slmctk won by checkmate"]

1. d4 {[%clk 0:03:01.9]} 1... Nf6 {[%clk 0:02:57.3]} 2. Nf3 {[%clk 0:03:02]}
2... e6 {[%clk 0:02:55.8]} 3. c4 {[%clk 0:03:01.4]} 3... c5 {[%clk 0:02:51.3]}
4. e3 {[%clk 0:03:00.3]} 4... cxd4 {[%clk 0:02:30.5]} 5. exd4 {[%clk 0:03:01.3]}
5... Bb4+ {[%clk 0:02:27.2]} 6. Bd2 {[%clk 0:02:58.3]} 6... Bxd2+ {[%clk
0:02:27.6]} 7. Qxd2 {[%clk 0:03:00.2]} 7... d5 {[%clk 0:02:28.7]} 8. c5 {[%clk
0:02:56.5]} 8... O-O {[%clk 0:02:27.4]} 9. Nc3 {[%clk 0:02:57.3]} 9... b6 {[%clk
0:02:26.4]} 10. b4 {[%clk 0:02:57.1]} 10... a5 {[%clk 0:02:25.1]} 11. b5 {[%clk
0:02:58.2]} 11... bxc5 {[%clk 0:02:13.1]} 12. dxc5 {[%clk 0:03:00.1]} 12... e5
{[%clk 0:02:00.5]} 13. c6 {[%clk 0:02:47.7]} 13... d4 {[%clk 0:01:47.2]} 14. Na4
{[%clk 0:02:48]} 14... Bg4 {[%clk 0:01:45.6]} 15. Be2 {[%clk 0:02:43.2]} 15...
Bxf3 {[%clk 0:01:41.8]} 16. gxf3 {[%clk 0:02:40.8]} 16... Nd5 {[%clk 0:01:38.3]}
17. O-O {[%clk 0:02:13.4]} 17... Nf4 {[%clk 0:01:35.5]} 18. Kh1 {[%clk
0:02:14.2]} 18... f5 {[%clk 0:01:27.1]} 19. Bc4+ {[%clk 0:02:13.4]} 19... Kh8
{[%clk 0:01:25.9]} 20. Rae1 {[%clk 0:02:13.5]} 20... Qf6 {[%clk 0:01:08.6]} 21.
Nb6 {[%clk 0:02:04.9]} 21... Ra7 {[%clk 0:01:05.7]} 22. Nd5 {[%clk 0:02:04.9]}
22... Nxd5 {[%clk 0:01:02.5]} 23. Bxd5 {[%clk 0:02:06.8]} 23... Nd7 {[%clk
0:00:49.4]} 24. cxd7 {[%clk 0:02:07.1]} 24... Rxd7 {[%clk 0:00:51.3]} 25. Bc6
{[%clk 0:02:08.2]} 25... Rd6 {[%clk 0:00:51.6]} 26. a4 {[%clk 0:02:08]} 26...
Qh4 {[%clk 0:00:37.1]} 27. Rg1 {[%clk 0:02:08.8]} 27... Rh6 {[%clk 0:00:38.2]}
28. Rg2 {[%clk 0:02:09.8]} 28... e4 {[%clk 0:00:35.5]} 29. Qxd4 {[%clk
0:02:03.8]} 29... Rg8 {[%clk 0:00:32.2]} 30. fxe4 {[%clk 0:02:01]} 30... f4
{[%clk 0:00:32.2]} 31. Qe5 {[%clk 0:01:44.3]} 31... f3 {[%clk 0:00:28.3]} 32.
Rg5 {[%clk 0:01:38.3]} 32... Rf6 {[%clk 0:00:21.9]} 33. Reg1 {[%clk 0:01:35.9]}
33... Qh6 {[%clk 0:00:13.8]} 34. Bd5 {[%clk 0:01:32.8]} 34... Rc8 {[%clk
0:00:11.7]} 35. Rxg7 {[%clk 0:01:29.7]} 35... Qxg7 {[%clk 0:00:07.2]} 36. Rxg7
{[%clk 0:01:29]} 36... Kxg7 {[%clk 0:00:09.1]} 37. Qg5+ {[%clk 0:01:26.3]} 37...
Rg6 {[%clk 0:00:07.8]} 38. Qe5+ {[%clk 0:01:27.3]} 38... Kh6 {[%clk 0:00:08]}
39. Qf4+ {[%clk 0:01:27.9]} 39... Kg7 {[%clk 0:00:08.7]} 40. Bc6 {[%clk
0:01:27.5]} 40... Rd8 {[%clk 0:00:07.8]} 41. Qe5+ {[%clk 0:01:28.1]} 41... Kh6
{[%clk 0:00:06.8]} 42. Bd5 {[%clk 0:01:22.9]} 42... Rc8 {[%clk 0:00:06.5]} 43.
Qf4+ {[%clk 0:01:23.8]} 43... Kg7 {[%clk 0:00:07.8]} 44. Bc6 {[%clk 0:01:21.5]}
44... Rd8 {[%clk 0:00:07.4]} 45. Qxf3 {[%clk 0:01:22.5]} 45... Rd2 {[%clk
0:00:06]} 46. h4 {[%clk 0:01:23.1]} 46... Rdd6 {[%clk 0:00:04.2]} 47. Kh2 {[%clk
0:01:23.4]} 47... Rdf6 {[%clk 0:00:04.3]} 48. Qe3 {[%clk 0:01:23.9]} 48... Kf8
{[%clk 0:00:05.2]} 49. e5 {[%clk 0:01:24.4]} 49... Rf5 {[%clk 0:00:05.9]} 50. f4
{[%clk 0:01:25]} 50... Rh6 {[%clk 0:00:04.9]} 51. Kg3 {[%clk 0:01:25.5]} 51...
Rfh5 {[%clk 0:00:06.8]} 52. Qc5+ {[%clk 0:01:25.6]} 52... Kg7 {[%clk 0:00:06.8]}
53. Qe7+ {[%clk 0:01:26.6]} 53... Kg8 {[%clk 0:00:07.8]} 54. Bd5+ {[%clk
0:01:27.1]} 54... Kh8 {[%clk 0:00:07.1]} 55. Qf8# {[%clk 0:01:28.4]} 1-0

[Event "*** Titled Tuesday Blitz"]
[Site "Chess.com"]
[Date "2018.01.02"]
[Round "1"]
[White "julinha97"]
[Black "TheBigBoss04"]
[Result "0-1"]
[WhiteElo "2207"]
[BlackElo "2495"]
[TimeControl "180+2"]
[EndTime "13:09:21 PST"]
[Termination "TheBigBoss04 won by resignation"]

1. e4 {[%clk 0:03:01.9]} 1... c6 {[%clk 0:03:01]} 2. d4 {[%clk 0:03:02.6]} 2...
d5 {[%clk 0:03:01.8]} 3. exd5 {[%clk 0:03:04.1]} 3... cxd5 {[%clk 0:03:02.8]} 4.
c4 {[%clk 0:03:05.6]} 4... Nf6 {[%clk 0:03:02.2]} 5. Nc3 {[%clk 0:03:06.4]} 5...
g6 {[%clk 0:03:03.6]} 6. Qb3 {[%clk 0:03:04]} 6... Bg7 {[%clk 0:02:48.7]} 7.
cxd5 {[%clk 0:02:57.2]} 7... O-O {[%clk 0:02:49.2]} 8. Be2 {[%clk 0:02:55.1]}
8... Nbd7 {[%clk 0:02:38.3]} 9. Bf3 {[%clk 0:02:54.4]} 9... Nb6 {[%clk
0:02:38.9]} 10. Nge2 {[%clk 0:02:52.7]} 10... Bg4 {[%clk 0:02:39.3]} 11. Bxg4
{[%clk 0:02:52.8]} 11... Nxg4 {[%clk 0:02:39.7]} 12. O-O {[%clk 0:02:53.6]}
12... Nf6 {[%clk 0:02:39.5]} 13. d6 {[%clk 0:02:47.1]} 13... Qxd6 {[%clk
0:02:37.8]} 14. Bg5 {[%clk 0:02:47.9]} 14... Nfd5 {[%clk 0:02:35.7]} 15. Ne4
{[%clk 0:02:25.5]} 15... Qd7 {[%clk 0:02:24.5]} 16. Nc5 {[%clk 0:02:21.5]} 16...
Qf5 {[%clk 0:02:25]} 17. Be3 {[%clk 0:02:14.1]} 17... Nxe3 {[%clk 0:01:38.5]}
18. fxe3 {[%clk 0:02:14]} 18... Qd5 {[%clk 0:01:32.9]} 19. Nf4 {[%clk
0:02:13.8]} 19... Qxb3 {[%clk 0:01:04.5]} 20. axb3 {[%clk 0:02:14.9]} 20... e5
{[%clk 0:01:05.9]} 21. dxe5 {[%clk 0:01:37.8]} 21... Bxe5 {[%clk 0:01:07.8]} 22.
Rf2 {[%clk 0:01:27.1]} 22... Rfc8 {[%clk 0:00:54.7]} 23. b4 {[%clk 0:01:24.7]}
23... Nc4 {[%clk 0:00:54]} 24. Nfd3 {[%clk 0:01:23.7]} 24... b6 {[%clk
0:00:47.6]} 25. Nxe5 {[%clk 0:01:20]} 25... Nxe5 {[%clk 0:00:48.7]} 26. Ne4
{[%clk 0:01:20.9]} 26... Rc4 {[%clk 0:00:46.3]} 27. Nd6 {[%clk 0:01:21.6]} 27...
Rxb4 {[%clk 0:00:44.5]} 28. Raf1 {[%clk 0:01:22.5]} 28... f5 {[%clk 0:00:39.5]}
29. Rc2 {[%clk 0:01:13.3]} 29... Rd8 {[%clk 0:00:37.2]} 30. Rd1 {[%clk
0:00:56.5]} 30... Nf7 {[%clk 0:00:25.9]} 31. Rcd2 {[%clk 0:00:45.8]} 31... Nxd6
{[%clk 0:00:25.6]} 32. Rxd6 {[%clk 0:00:47.4]} 32... Rxd6 {[%clk 0:00:26.7]} 33.
Rxd6 {[%clk 0:00:49]} 33... Rxb2 {[%clk 0:00:26.1]} 34. Rd8+ {[%clk 0:00:49.8]}
34... Kg7 {[%clk 0:00:26.6]} 35. Rd7+ {[%clk 0:00:51.4]} 35... Kf6 {[%clk
0:00:27.4]} 36. Rxa7 {[%clk 0:00:53.1]} 36... h5 {[%clk 0:00:27.8]} 37. Rb7
{[%clk 0:00:53.3]} 37... h4 {[%clk 0:00:27.6]} 38. h3 {[%clk 0:00:53.4]} 38...
b5 {[%clk 0:00:26.8]} 39. Rb6+ {[%clk 0:00:50.9]} 39... Kg5 {[%clk 0:00:27.8]}
40. Kf1 {[%clk 0:00:52.2]} 40... b4 {[%clk 0:00:28.1]} 41. Kg1 {[%clk 0:00:53]}
41... b3 {[%clk 0:00:28]} 42. Kf1 {[%clk 0:00:54.4]} 42... Kh6 {[%clk
0:00:22.2]} 43. Kg1 {[%clk 0:00:54.2]} 43... Kh5 {[%clk 0:00:22]} 44. Rb5 {[%clk
0:00:53.1]} 44... Kg5 {[%clk 0:00:20.1]} 45. Kf1 {[%clk 0:00:52]} 45... Kf6
{[%clk 0:00:20.7]} 46. Rb6+ {[%clk 0:00:53.1]} 46... Ke5 {[%clk 0:00:20.2]} 47.
Rxg6 {[%clk 0:00:53.8]} 47... Rc2 {[%clk 0:00:21.3]} 48. Rb6 {[%clk 0:00:46.2]}
48... b2 {[%clk 0:00:22.2]} 49. Rb5+ {[%clk 0:00:46.4]} 49... Kd6 {[%clk
0:00:23.2]} 0-1

[Event "*** Titled Tuesday Blitz"]
[Site "Chess.com"]
[Date "2018.01.02"]
[Round "1"]
[White "Angry_Serb"]
[Black "VeraNebolsina"]
[Result "1-0"]
[WhiteElo "2430"]
[BlackElo "1963"]
[TimeControl "180+2"]
[EndTime "13:09:27 PST"]
[Termination "Angry_Serb won by resignation"]

1. e4 {[%clk 0:03:01.7]} 1... c5 {[%clk 0:02:59]} 2. Nc3 {[%clk 0:03:02]} 2...
Nc6 {[%clk 0:02:55.1]} 3. Bb5 {[%clk 0:03:01]} 3... g6 {[%clk 0:02:53.8]} 4.
Bxc6 {[%clk 0:03:01.5]} 4... bxc6 {[%clk 0:02:52.6]} 5. d3 {[%clk 0:03:02.7]}
5... Bg7 {[%clk 0:02:52.6]} 6. f4 {[%clk 0:03:04.2]} 6... d6 {[%clk 0:02:52.5]}
7. Nf3 {[%clk 0:03:05.3]} 7... Nf6 {[%clk 0:02:44.7]} 8. O-O {[%clk 0:03:06.3]}
8... O-O {[%clk 0:02:45.1]} 9. Qe1 {[%clk 0:03:05.7]} 9... Ne8 {[%clk
0:02:22.8]} 10. Kh1 {[%clk 0:02:58.1]} 10... Nc7 {[%clk 0:02:23.6]} 11. b3
{[%clk 0:02:57.7]} 11... Nb5 {[%clk 0:02:15]} 12. Bb2 {[%clk 0:02:57.6]} 12...
Qa5 {[%clk 0:02:07.2]} 13. Na4 {[%clk 0:01:31.6]} 13... Qxe1 {[%clk 0:02:02.9]}
14. Raxe1 {[%clk 0:01:33.5]} 14... Bxb2 {[%clk 0:01:48.7]} 15. Nxb2 {[%clk
0:01:35.4]} 15... Bg4 {[%clk 0:01:49.5]} 16. h3 {[%clk 0:01:30.6]} 16... Bxf3
{[%clk 0:01:49.9]} 17. Rxf3 {[%clk 0:01:32.5]} 17... Nc3 {[%clk 0:01:31.6]} 18.
a4 {[%clk 0:01:29.5]} 18... e6 {[%clk 0:01:30.1]} 19. Nc4 {[%clk 0:01:21.5]}
19... Rfd8 {[%clk 0:01:30.1]} 20. e5 {[%clk 0:01:13.4]} 20... d5 {[%clk
0:01:29.1]} 21. Na5 {[%clk 0:01:14.6]} 21... Rdc8 {[%clk 0:01:29.1]} 22. Nb7
{[%clk 0:01:13.2]} 22... c4 {[%clk 0:01:01.1]} 23. dxc4 {[%clk 0:01:13.3]} 23...
Na2 {[%clk 0:01:01.8]} 24. Nd6 {[%clk 0:01:08.8]} 24... Rcb8 {[%clk 0:00:56.9]}
25. g4 {[%clk 0:01:03.5]} 25... Nb4 {[%clk 0:00:56]} 26. Re2 {[%clk 0:01:03.2]}
26... Na6 {[%clk 0:00:51.9]} 27. f5 {[%clk 0:01:02.5]} 27... Nc5 {[%clk
0:00:48.6]} 28. fxe6 {[%clk 0:00:55.7]} 28... fxe6 {[%clk 0:00:48.8]} 29. Rf6
{[%clk 0:00:45.8]} 29... Rf8 {[%clk 0:00:49]} 30. Ref2 {[%clk 0:00:45.1]} 30...
Rxf6 {[%clk 0:00:49.2]} 31. exf6 {[%clk 0:00:38.3]} 31... Kf8 {[%clk 0:00:45.2]}
32. f7 {[%clk 0:00:34.7]} 32... Rd8 {[%clk 0:00:42.4]} 33. Ne8 {[%clk
0:00:28.1]} 33... dxc4 {[%clk 0:00:42.8]} 34. bxc4 {[%clk 0:00:15.8]} 34... Rd4
{[%clk 0:00:43.6]} 35. Nf6 {[%clk 0:00:13.3]} 35... Kxf7 {[%clk 0:00:30.3]} 36.
Ne4+ {[%clk 0:00:14.3]} 36... Ke7 {[%clk 0:00:31.4]} 37. Nxc5 {[%clk 0:00:16.2]}
37... Rxc4 {[%clk 0:00:32.7]} 38. Nb3 {[%clk 0:00:13.3]} 38... Rxa4 {[%clk
0:00:33.5]} 39. Kg2 {[%clk 0:00:14.5]} 39... Ra2 {[%clk 0:00:33.7]} 40. Kf3
{[%clk 0:00:14.9]} 40... a5 {[%clk 0:00:35.3]} 41. Nd4 {[%clk 0:00:14.1]} 41...
a4 {[%clk 0:00:35.5]} 42. Nxc6+ {[%clk 0:00:15.2]} 42... Kd6 {[%clk 0:00:36.3]}
43. Nb4 {[%clk 0:00:17.1]} 43... Rb2 {[%clk 0:00:37.5]} 44. Rd2+ {[%clk
0:00:17.5]} 44... Ke7 {[%clk 0:00:35.2]} 45. Nd3 {[%clk 0:00:18.7]} 45... Rb1
{[%clk 0:00:34.1]} 46. c4 {[%clk 0:00:19.1]} 46... a3 {[%clk 0:00:34.3]} 47. Ra2
{[%clk 0:00:20.6]} 47... Rb3 {[%clk 0:00:35.2]} 48. Ke4 {[%clk 0:00:22.1]} 48...
Kd6 {[%clk 0:00:35.7]} 49. Kd4 {[%clk 0:00:21.4]} 49... e5+ {[%clk 0:00:34.5]}
50. Nxe5 {[%clk 0:00:22.5]} 50... Rxh3 {[%clk 0:00:36.1]} 51. Nd3 {[%clk
0:00:23.7]} 51... Rg3 {[%clk 0:00:34.8]} 52. Rxa3 {[%clk 0:00:24.2]} 52... Rxg4+
{[%clk 0:00:36]} 53. Kc3 {[%clk 0:00:25.8]} 53... Rg3 {[%clk 0:00:37.2]} 54.
Ra6+ {[%clk 0:00:26.1]} 54... Kc7 {[%clk 0:00:34.6]} 55. Ra7+ {[%clk 0:00:26.8]}
55... Kc6 {[%clk 0:00:36.2]} 56. Rxh7 {[%clk 0:00:28.5]} 56... g5 {[%clk
0:00:37.8]} 57. Rg7 {[%clk 0:00:28.9]} 57... g4 {[%clk 0:00:38.6]} 58. Rxg4
{[%clk 0:00:29.9]} 1-0

[Event "*** Titled Tuesday Blitz"]
[Site "Chess.com"]
[Date "2018.01.02"]
[Round "1"]
[White "Alexander_Moskalenko"]
[Black "Boryboy"]
[Result "1-0"]
[WhiteElo "2753"]
[BlackElo "2409"]
[TimeControl "180+2"]
[EndTime "13:09:30 PST"]
[Termination "Alexander_Moskalenko won by resignation"]

1. e4 {[%clk 0:02:59.9]} 1... e6 {[%clk 0:02:56.2]} 2. d4 {[%clk 0:02:59.9]}
2... d5 {[%clk 0:02:56.7]} 3. Nc3 {[%clk 0:03:00.7]} 3... Bb4 {[%clk 0:02:56.3]}
4. Qd3 {[%clk 0:03:00.8]} 4... Ne7 {[%clk 0:02:48.5]} 5. Ne2 {[%clk 0:02:57.3]}
5... b6 {[%clk 0:02:47.2]} 6. Qg3 {[%clk 0:02:51.9]} 6... O-O {[%clk 0:02:46.3]}
7. a3 {[%clk 0:02:47.8]} 7... Bxc3+ {[%clk 0:02:42.5]} 8. Nxc3 {[%clk
0:02:49.7]} 8... dxe4 {[%clk 0:02:39.4]} 9. Bg5 {[%clk 0:02:51]} 9... Bb7 {[%clk
0:02:35.2]} 10. O-O-O {[%clk 0:02:50.3]} 10... Nd7 {[%clk 0:02:30.5]} 11. h4
{[%clk 0:02:39.3]} 11... Kh8 {[%clk 0:02:20.7]} 12. h5 {[%clk 0:02:35.3]} 12...
h6 {[%clk 0:02:21.6]} 13. Bf4 {[%clk 0:02:30]} 13... Rc8 {[%clk 0:02:19.9]} 14.
Be2 {[%clk 0:02:17]} 14... Nf6 {[%clk 0:02:16.4]} 15. Be5 {[%clk 0:02:12.2]}
15... Nf5 {[%clk 0:02:09.1]} 16. Qh2 {[%clk 0:02:13.3]} 16... Nd7 {[%clk
0:02:08.7]} 17. Bf4 {[%clk 0:02:07.3]} 17... Qf6 {[%clk 0:02:03.7]} 18. g4
{[%clk 0:01:57.1]} 18... Nxd4 {[%clk 0:02:03.3]} 19. Rxd4 {[%clk 0:01:58.3]}
19... Qxd4 {[%clk 0:01:48.1]} 20. Rd1 {[%clk 0:01:59]} 20... Qf6 {[%clk
0:01:46.2]} 21. Rxd7 {[%clk 0:01:59.4]} 21... Bc6 {[%clk 0:01:47.3]} 22. Rd2
{[%clk 0:01:58.2]} 22... Rfd8 {[%clk 0:01:46.4]} 23. Rxd8+ {[%clk 0:01:52.7]}
23... Qxd8 {[%clk 0:01:47.2]} 24. Qg3 {[%clk 0:01:48.2]} 24... f6 {[%clk
0:01:43.2]} 25. Qe3 {[%clk 0:01:48.6]} 25... e5 {[%clk 0:01:34]} 26. Bxh6 {[%clk
0:01:47.3]} 26... Qd4 {[%clk 0:01:35.2]} 27. Qd2 {[%clk 0:01:11.6]} 27... Qxf2
{[%clk 0:01:14.4]} 28. Be3 {[%clk 0:01:12.5]} 28... Qh2 {[%clk 0:01:13]} 29. b4
{[%clk 0:01:06.6]} 29... Rf8 {[%clk 0:00:55.2]} 30. Kb2 {[%clk 0:00:58.7]} 30...
Qg3 {[%clk 0:00:39.4]} 31. h6 {[%clk 0:00:56.7]} 31... g5 {[%clk 0:00:39.5]} 32.
b5 {[%clk 0:00:51.7]} 32... Be8 {[%clk 0:00:35.7]} 33. Nd5 {[%clk 0:00:52.6]}
33... Qh4 {[%clk 0:00:31.2]} 34. Nxf6 {[%clk 0:00:53.2]} 34... Qxh6 {[%clk
0:00:31.3]} 35. Bxg5 {[%clk 0:00:53.9]} 35... Qg7 {[%clk 0:00:32.1]} 36. Nxe4
{[%clk 0:00:53.4]} 36... Qg6 {[%clk 0:00:28.7]} 37. Bd3 {[%clk 0:00:53.4]} 37...
Bxb5 {[%clk 0:00:29.6]} 38. Qh2+ {[%clk 0:00:43.2]} 38... Kg7 {[%clk 0:00:26.6]}
39. Bxb5 {[%clk 0:00:41.7]} 39... Qxe4 {[%clk 0:00:24.1]} 40. Bh6+ {[%clk
0:00:42.6]} 40... Kg8 {[%clk 0:00:24.6]} 41. Bxf8 {[%clk 0:00:43.2]} 41... Kxf8
{[%clk 0:00:25.2]} 42. Qf2+ {[%clk 0:00:40.9]} 42... Ke7 {[%clk 0:00:26.3]} 43.
g5 {[%clk 0:00:40.5]} 43... Qg6 {[%clk 0:00:18.6]} 44. Qe3 {[%clk 0:00:41.2]}
44... Kd6 {[%clk 0:00:20]} 45. Bd3 {[%clk 0:00:41.8]} 45... Qg7 {[%clk
0:00:21.5]} 46. Be4 {[%clk 0:00:42]} 46... Ke7 {[%clk 0:00:18]} 47. g6 {[%clk
0:00:41.5]} 47... Qf6 {[%clk 0:00:19.5]} 48. Qf3 {[%clk 0:00:39.7]} 48... Qg7
{[%clk 0:00:12.1]} 49. Qf5 {[%clk 0:00:40]} 49... b5 {[%clk 0:00:09.4]} 50. Kc3
{[%clk 0:00:40.2]} 50... a5 {[%clk 0:00:10.7]} 51. Kb2 {[%clk 0:00:38.2]} 51...
c5 {[%clk 0:00:11.2]} 52. Qc8 {[%clk 0:00:37.4]} 52... Kf6 {[%clk 0:00:11.4]}
53. Qxc5 {[%clk 0:00:37.5]} 53... b4 {[%clk 0:00:13]} 54. Qf2+ {[%clk
0:00:36.8]} 54... Ke6 {[%clk 0:00:12.9]} 55. Qb6+ {[%clk 0:00:36.2]} 1-0